bitfinex/quotes_SOLUSD_20250410
["timestamp","ask_amount","ask_price","bid_price","bid_amount"]
[1744301539781,9.0962,109.94,109.89,34.95646998]
[1744301539960,43.70454684,109.95,109.91,0.28432314]
[1744301540162,34.60914684,109.93,109.89,34.67214684]
[1744301540455,34.60914684,109.91,109.89,0.063]
[1744301540658,34.60914684,109.9,109.89,0.063]
[1744301541058,78.31739368,109.9,109.89,0.063]
[1744301541467,9.0991,109.9,109.89,0.063]
[1744301541864,34.60914684,109.92,109.89,0.063]
[1744301543282,43.70574684,109.93,109.89,0.063]
[1744301543971,34.60914684,109.92,109.89,0.063]
[1744301544175,34.60914684,109.91,109.89,0.063]
[1744301544380,34.60914684,109.92,109.89,0.063]
[1744301544561,43.70574684,109.93,109.89,0.063]
[1744301544762,34.60914684,109.92,109.89,0.063]
[1744301545377,43.70714684,109.92,109.89,0.063]
[1744301546085,9.097,109.93,109.89,0.063]
[1744301546285,9.0961,109.94,109.9,0.28432314]
[1744301546480,34.60914684,109.94,109.9,0.28432314]
[1744301546788,34.60914684,109.94,109.9,18.933972]
[1744301547077,43.70364684,109.96,109.92,0.28432314]
[1744301547291,43.70424684,109.95,109.9,27.74844886]
[1744301547464,34.60914684,109.94,109.9,0.28432314]
[1744301547656,9.0951,109.95,109.9,34.89346998]
[1744301547852,9.0925,109.98,109.91,18.64964886]
[1744301548081,34.60914684,109.94,109.89,9.1627]
[1744301548277,34.60914684,109.94,109.9,53.54311884]
[1744301548473,31.8239,109.98,109.91,34.60914684]
[1744301548887,34.60914684,109.95,109.9,18.933972]
[1744301549080,31.8239,109.98,109.91,34.60914684]
[1744301549262,34.60914684,109.96,109.91,34.60914684]
[1744301549463,22.7314,109.98,109.91,34.60914684]
[1744301549774,9.0933,109.97,109.94,34.60914684]
[1744301549983,9.0933,109.97,109.93,34.89346998]
[1744301550374,43.70244684,109.97,109.93,0.28432314]
[1744301550689,9.0933,109.97,109.94,34.60914684]
[1744301550996,9.1221,109.99,109.95,34.60914684]
[1744301551687,0.03,109.99,109.97,34.60914684]
[1744301552077,0.03,109.99,109.98,53.54311884]
[1744301552256,0.03,109.99,109.98,34.89346998]
[1744301552784,0.03,109.99,109.96,34.60914684]
[1744301552987,0.03,109.99,109.97,34.60914684]
[1744301553189,0.03,109.99,109.96,34.60914684]
[1744301553365,34.63914684,109.99,109.95,0.28432314]
[1744301553567,34.60914684,109.96,109.92,26.0]
[1744301553775,34.60914684,109.96,109.91,4.53102553]
[1744301553958,34.60914684,109.96,109.9,43.70824684]
[1744301554158,9.0925,109.98,109.91,18.64964886]
[1744301554384,34.60914684,109.96,109.91,34.60914684]
[1744301554580,34.60914684,109.94,109.89,114.84154886]
[1744301554776,33.4218,109.98,109.92,34.60914684]
[1744301554983,34.60914684,109.96,109.92,34.60914684]
[1744301555182,34.60914684,109.97,109.92,34.60914684]
[1744301555373,43.70164684,109.98,109.94,34.60914684]
[1744301555584,9.0925,109.98,109.94,34.60914684]
[1744301555785,43.70164684,109.98,109.94,34.60914684]
[1744301555983,43.70164684,109.98,109.93,0.28432314]
[1744301556194,43.70164684,109.98,109.94,34.60914684]
[1744301556592,50.09134684,109.99,109.94,34.60914684]
[1744301556790,34.60914684,109.98,109.94,34.60914684]
[1744301557297,38.2115,109.99,109.92,34.60914684]
[1744301557478,38.2115,109.99,109.93,34.60914684]
[1744301557479,34.60914684,109.98,109.93,34.60914684]
[1744301557682,50.09134684,109.99,109.94,43.70494684]
[1744301557876,43.73124684,109.99,109.95,34.60914684]
[1744301558073,0.03,109.99,109.96,34.60914684]
[1744301558781,9.1221,109.99,109.95,34.60914684]
[1744301558981,43.73124684,109.99,109.94,34.60914684]
[1744301559280,34.60914684,109.98,109.93,60.89346998]
[1744301559490,9.1221,109.99,109.93,60.89346998]
[1744301559491,43.73124684,109.99,109.94,34.60914684]
[1744301559797,0.03,109.99,109.98,34.60914684]
[1744301559986,0.03,109.99,109.96,0.28432314]
[1744301560495,0.03,109.99,109.97,34.60914684]
[1744301560893,0.03,109.99,109.96,0.28432314]
[1744301561089,34.63914684,109.99,109.95,34.60914684]
[1744301561392,0.03,109.99,109.95,0.28432314]
[1744301561604,0.03,109.99,109.95,34.89346998]
[1744301562300,0.03,109.99,109.95,43.98846998]
[1744301562795,0.03,109.99,109.96,34.60914684]
[1744301562972,0.03,109.99,109.97,34.60914684]
[1744301563174,0.03,109.99,109.97,0.28432314]
[1744301563369,0.03,109.99,109.96,34.60914684]
[1744301563569,0.03,109.99,109.93,35.0962]
[1744301563570,34.63914684,109.99,109.93,35.0962]
[1744301563897,34.60914684,109.98,109.94,34.60914684]
[1744301564200,34.60914684,109.96,109.92,34.60914684]
[1744301564493,34.60914684,109.97,109.92,34.60914684]
[1744301564665,34.60914684,109.97,109.93,34.60914684]
[1744301564869,34.60914684,109.97,109.92,34.75130841]
[1744301565089,34.60914684,109.96,109.92,0.14216157]
[1744301565283,34.60914684,109.96,109.92,0.28432314]
[1744301565493,34.60914684,109.96,109.92,34.89346998]
[1744301565669,34.60914684,109.96,109.92,34.75130841]
[1744301566071,34.60914684,109.96,109.92,0.14216157]
[1744301566271,34.60914684,109.96,109.92,0.28432314]
[1744301566272,43.70394684,109.96,109.92,0.28432314]
[1744301566481,34.60914684,109.95,109.9,18.79181043]
[1744301566699,15.4636,109.96,109.9,34.60914684]
[1744301566985,34.60914684,109.94,109.9,34.60914684]
[1744301567199,34.60914684,109.95,109.9,34.60914684]
[1744301567581,34.60914684,109.94,109.9,34.60914684]
[1744301567784,34.60914684,109.94,109.89,9.44682314]
[1744301567785,34.60914684,109.93,109.89,34.95646998]
[1744301568168,34.60914684,109.92,109.89,0.34732314]
[1744301568372,34.60914684,109.92,109.89,0.063]
[1744301568373,34.60914684,109.91,109.89,0.063]
[1744301568773,34.60914684,109.9,109.89,0.063]
[1744301569280,10.7234,109.92,109.89,0.063]
[1744301569484,45.33254684,109.92,109.89,0.063]
[1744301569796,9.0976,109.92,109.89,0.063]
[1744301570377,34.60914684,109.92,109.89,0.063]
[1744301570689,34.60914684,109.91,109.89,0.063]
[1744301571300,34.60914684,109.92,109.89,0.063]
[1744301572376,34.60914684,109.9,109.89,0.063]
[1744301572784,43.70784684,109.91,109.89,0.063]
[1744301572980,34.60914684,109.92,109.89,0.063]
[1744301573476,34.60914684,109.93,109.89,34.67214684]
[1744301573994,34.60914684,109.91,109.89,0.063]
[1744301574390,43.70824684,109.9,109.89,0.063]
[1744301574594,9.0987,109.91,109.89,0.063]
[1744301574792,34.60914684,109.9,109.89,0.063]
[1744301574984,9.0987,109.91,109.89,0.063]
[1744301575181,34.60914684,109.9,109.89,0.063]
[1744301575695,9.0987,109.91,109.89,0.063]
[1744301575891,34.60914684,109.9,109.89,0.063]
[1744301576107,94.69116568,109.9,109.89,0.0001]
[1744301576307,9.1024,109.86,109.84,0.063]
[1744301576601,34.60914684,109.88,109.84,34.67214684]
[1744301576802,34.60914684,109.89,109.84,34.67214684]
[1744301577102,9.1,109.89,109.84,34.67214684]
[1744301577282,9.1,109.89,109.85,34.60914684]
[1744301577478,50.35834684,109.9,109.85,34.60914684]
[1744301577687,48.74764684,109.9,109.85,0.28432314]
[1744301577996,48.74764684,109.9,109.84,0.20516157]
[1744301577997,34.60914684,109.88,109.84,0.34732314]
[1744301578202,34.60914684,109.89,109.84,34.95646998]
[1744301578401,9.1008,109.88,109.84,34.67214684]
[1744301578606,43.70994684,109.88,109.84,34.67214684]
[1744301578791,43.70994684,109.88,109.84,0.063]
[1744301579184,43.70994684,109.88,109.84,34.67214684]
[1744301579379,43.70994684,109.88,109.84,0.063]
[1744301579583,9.1008,109.88,109.84,0.063]
[1744301579897,9.1008,109.88,109.84,34.67214684]
[1744301580201,43.70994684,109.88,109.84,0.063]
[1744301580412,43.71174684,109.86,109.84,0.063]
[1744301580587,43.71114684,109.87,109.84,0.063]
[1744301581105,39.64804684,109.9,109.84,24.67214684]
[1744301581106,5.0389,109.9,109.84,24.67214684]
[1744301581286,9.0994,109.9,109.86,34.60914684]
[1744301581491,43.70664684,109.92,109.88,34.60914684]
[1744301581787,9.0966,109.93,109.89,34.60914684]
[1744301582215,43.70574684,109.93,109.89,34.60914684]
[1744301582511,43.70494684,109.94,109.9,34.60914684]
[1744301582806,43.70494684,109.94,109.89,34.89346998]
[1744301582989,43.70494684,109.94,109.9,34.60914684]
[1744301583409,9.0958,109.94,109.9,34.60914684]
[1744301583582,43.70494684,109.94,109.9,34.60914684]
[1744301584105,9.0958,109.94,109.9,34.60914684]
[1744301584305,34.60914684,109.95,109.91,34.60914684]
[1744301584602,43.70434684,109.95,109.91,0.28432314]
[1744301584998,34.60914684,109.94,109.91,0.28432314]
[1744301585204,43.70434684,109.95,109.91,34.89346998]
[1744301585385,9.0945,109.96,109.92,34.60914684]
[1744301585586,9.0945,109.96,109.91,0.28432314]
[1744301585804,43.70364684,109.96,109.92,34.60914684]
[1744301585983,34.60914684,109.93,109.87,18.64964886]
[1744301586190,34.60914684,109.92,109.87,18.64964886]
[1744301586391,34.60914684,109.92,109.88,0.28432314]
[1744301586587,43.70724684,109.92,109.88,34.89346998]
[1744301586793,34.60914684,109.91,109.88,0.28432314]
[1744301587114,34.60914684,109.89,109.83,6.2008]
[1744301587293,38.4075,109.92,109.84,34.60914684]
[1744301587495,38.4075,109.92,109.85,34.60914684]
[1744301587701,34.60914684,109.89,109.84,34.89346998]
[1744301587903,34.60914684,109.9,109.85,34.60914684]
[1744301588415,9.1008,109.88,109.84,18.933972]
[1744301588589,34.60914684,109.87,109.83,0.063]
[1744301588794,34.60914684,109.87,109.83,26.063]
[1744301588998,9.1002,109.89,109.84,18.933972]
[1744301589314,34.60914684,109.89,109.84,18.79181043]
[1744301589488,24.3656,109.92,109.85,34.75130841]
[1744301589816,34.60914684,109.9,109.85,0.14216157]
[1744301590115,34.60914684,109.89,109.86,0.14216157]
[1744301590297,34.60914684,109.9,109.85,34.75130841]
[1744301590500,34.60914684,109.87,109.84,0.28432314]
[1744301590693,34.60914684,109.87,109.83,60.67214684]
[1744301591012,34.60914684,109.88,109.83,60.67214684]
[1744301591208,34.60914684,109.86,109.83,0.063]
[1744301591383,34.60914684,109.85,109.83,0.063]
[1744301591583,34.60914684,109.84,109.83,0.063]
[1744301591787,34.60914684,109.85,109.83,0.063]
[1744301592217,26.0,109.86,109.83,0.063]
[1744301592892,9.0991,109.9,109.85,34.60914684]
[1744301593089,34.60914684,109.89,109.85,34.60914684]
[1744301593409,43.70824684,109.9,109.86,34.60914684]
[1744301593590,34.60914684,109.89,109.85,34.60914684]
[1744301594216,9.095,109.95,109.88,34.60914684]
[1744301594517,43.70704684,109.92,109.88,0.28432314]
[1744301594703,9.0979,109.92,109.87,34.60914684]
[1744301594904,34.60914684,109.91,109.87,34.89346998]
[1744301596001,9.0979,109.92,109.87,0.28432314]
[1744301596202,34.60914684,109.91,109.87,34.89346998]
[1744301596500,31.8366,109.94,109.87,34.89346998]
[1744301596693,34.60914684,109.92,109.87,34.89346998]
[1744301597225,34.60914684,109.91,109.87,0.28432314]
[1744301597511,31.8366,109.94,109.87,34.89346998]
[1744301597709,31.8366,109.94,109.87,0.28432314]
[1744301598009,34.60914684,109.91,109.87,34.89346998]
[1744301598495,34.60914684,109.91,109.87,0.28432314]
[1744301598711,43.70764684,109.91,109.87,0.28432314]
[1744301598891,9.0985,109.91,109.87,34.89346998]
[1744301599292,43.70764684,109.91,109.87,34.89346998]
[1744301599600,43.70764684,109.91,109.87,0.28432314]
[1744301599789,43.70684684,109.92,109.89,0.28432314]
[1744301600808,43.70684684,109.92,109.88,0.28432314]
[1744301601396,43.70684684,109.92,109.88,34.89346998]
[1744301601620,9.0977,109.92,109.88,34.89346998]
[1744301601795,1.5558,109.97,109.91,34.60914684]
[1744301601996,43.70244684,109.97,109.93,0.28432314]
[1744301602224,43.70244684,109.97,109.93,34.89346998]
[1744301602423,43.70244684,109.97,109.92,0.28432314]
[1744301602424,34.60914684,109.95,109.92,0.28432314]
[1744301602604,34.60914684,109.96,109.92,0.28432314]
[1744301602925,9.095,109.95,109.92,34.89346998]
[1744301603295,43.70364684,109.96,109.92,34.89346998]
[1744301603511,43.70364684,109.96,109.92,0.28432314]
[1744301603929,34.60914684,109.95,109.92,0.28432314]
[1744301604222,9.0945,109.96,109.92,0.28432314]
[1744301604425,43.70364684,109.96,109.92,34.89346998]
[1744301604926,43.70364684,109.96,109.92,0.28432314]
[1744301605716,43.70364684,109.96,109.92,34.89346998]
[1744301606426,43.70364684,109.96,109.92,0.28432314]
[1744301606732,9.0945,109.96,109.92,0.28432314]
[1744301606919,43.70364684,109.96,109.92,34.89346998]
[1744301608026,34.60914684,109.94,109.88,87.2304]
[1744301608236,34.60914684,109.92,109.86,20.20754886]
[1744301608416,34.60914684,109.92,109.86,10.66]
[1744301608617,34.60914684,109.92,109.87,34.60914684]
[1744301608815,34.60914684,109.91,109.85,96.3144]
[1744301609037,9.0991,109.9,109.86,34.60914684]
[1744301609215,43.70824684,109.9,109.85,96.3148]
[1744301609535,43.70824684,109.9,109.85,34.60914684]
[1744301610037,43.70824684,109.9,109.86,0.28432314]
[1744301610729,34.60914684,109.88,109.84,53.2587957]
[1744301610926,34.60914684,109.88,109.84,18.64964886]
[1744301611139,9.1016,109.87,109.84,18.64964886]
[1744301611437,9.1016,109.87,109.83,36.26374684]
[1744301611615,34.60914684,109.85,109.83,0.063]
[1744301612114,31.8557,109.87,109.83,0.063]
[1744301612422,34.60914684,109.86,109.81,34.60914684]
[1744301612927,34.60914684,109.86,109.81,53.2587957]
[1744301613238,9.1033,109.85,109.81,53.2587957]
[1744301613439,43.71244684,109.85,109.81,34.60914684]
[1744301614426,43.71244684,109.85,109.8,119.52297299]
[1744301614938,34.60914684,109.83,109.8,84.91382615]
[1744301615109,34.60914684,109.83,109.79,18.71264886]
[1744301615110,34.60914684,109.81,109.79,0.063]
[1744301615318,43.71604684,109.81,109.79,2.683]
[1744301615510,9.1069,109.81,109.79,2.683]
[1744301616435,43.71524684,109.82,109.79,0.063]
[1744301617537,9.1061,109.82,109.79,0.063]
[1744301617933,34.60914684,109.82,109.79,0.063]
[1744301618132,9.1041,109.84,109.81,34.60914684]
[1744301618340,9.1036,109.85,109.81,34.60914684]
[1744301618642,34.60914684,109.84,109.79,53.60611884]
[1744301618841,34.60914684,109.84,109.79,0.063]
[1744301619041,34.60914684,109.84,109.8,34.60914684]
[1744301619228,34.60914684,109.83,109.79,0.063]
[1744301619727,9.1048,109.84,109.79,43.78024684]
[1744301619928,9.1037,109.85,109.79,27.82074886]
[1744301620142,34.60914684,109.84,109.79,62.4298957]
[1744301620343,9.1037,109.85,109.79,34.67214684]
[1744301620344,34.60914684,109.83,109.79,34.67214684]
[1744301620549,43.71284684,109.85,109.79,0.063]
[1744301620717,34.60914684,109.82,109.79,0.063]
[1744301620923,43.71284684,109.85,109.79,34.67214684]
[1744301620924,34.60914684,109.83,109.79,34.67214684]
[1744301621123,66.47114684,109.85,109.79,34.67214684]
[1744301621541,9.1037,109.85,109.81,34.60914684]
[1744301621732,9.1037,109.85,109.8,9.1067]
[1744301622121,34.60914684,109.84,109.8,9.1067]
[1744301622749,15.5962,109.86,109.8,9.1067]
[1744301622927,34.60914684,109.85,109.8,9.1067]
[1744301623253,34.60914684,109.85,109.81,34.60914684]
[1744301623429,34.60914684,109.84,109.79,34.67214684]
[1744301623631,34.60914684,109.81,109.79,0.063]
[1744301623938,31.8644,109.84,109.79,0.063]
[1744301623939,34.60914684,109.8,109.79,0.063]
[1744301624120,26.0,109.81,109.79,0.063]
[1744301624326,1.6264,109.83,109.79,0.063]
[1744301624630,34.60914684,109.82,109.79,0.063]
[1744301625646,34.60914684,109.81,109.79,0.063]
[1744301625948,43.71534684,109.82,109.79,0.063]
[1744301626244,9.1062,109.82,109.79,0.063]
[1744301626444,43.71534684,109.82,109.79,0.063]
[1744301627150,9.1062,109.82,109.79,0.063]
[1744301627451,34.60914684,109.81,109.79,0.063]
[1744301628218,34.60914684,109.8,109.79,0.063]
[1744301629252,60.60914684,109.8,109.79,0.063]
[1744301629445,69.71654684,109.8,109.79,0.063]
[1744301629829,35.1074,109.8,109.79,0.063]
[1744301630353,69.71654684,109.8,109.79,0.063]
[1744301630855,104.32569368,109.8,109.79,0.063]
[1744301631026,69.71654684,109.8,109.79,0.063]
[1744301631344,35.1074,109.8,109.79,0.063]
[1744301631533,69.71654684,109.8,109.79,0.063]
[1744301632242,35.1074,109.8,109.79,0.063]
[1744301632652,9.107,109.81,109.79,0.063]
[1744301632833,9.1062,109.82,109.79,0.063]
[1744301633347,9.1074,109.8,109.79,0.063]
[1744301633542,22.7634,109.83,109.79,0.063]
[1744301633854,34.60914684,109.82,109.79,0.063]
[1744301634352,9.1062,109.82,109.79,0.063]
[1744301634549,9.1062,109.82,109.79,34.67214684]
[1744301634727,43.71534684,109.82,109.79,0.063]
[1744301634929,34.60914684,109.81,109.79,0.063]
[1744301635135,34.60914684,109.8,109.79,0.063]
[1744301635337,9.1074,109.8,109.79,0.063]
[1744301635538,22.7613,109.84,109.79,0.063]
[1744301635856,34.60914684,109.82,109.79,0.063]
[1744301636452,34.60914684,109.81,109.79,0.063]
[1744301637128,31.8673,109.83,109.79,0.063]
[1744301637129,34.60914684,109.8,109.79,0.063]
[1744301637328,43.71654684,109.8,109.79,0.063]
[1744301637542,9.1074,109.8,109.79,0.063]
[1744301637738,43.71614684,109.81,109.79,0.063]
[1744301638150,9.107,109.81,109.79,0.063]
[1744301639745,9.1049,109.83,109.79,0.063]
[1744301640038,34.60914684,109.82,109.79,0.063]
[1744301640359,43.71404684,109.83,109.79,0.063]
[1744301640537,34.60914684,109.82,109.79,0.063]
[1744301640734,34.60914684,109.81,109.79,0.063]
[1744301641050,34.60914684,109.8,109.79,0.063]
[1744301642051,88.15226568,109.8,109.79,0.0001]
[1744301642253,18.933972,109.79,109.77,0.063]
[1744301642443,53.54311884,109.78,109.77,0.0001]
[1744301642841,62.65221884,109.78,109.77,0.0001]
[1744301644462,26.0,109.76,109.75,0.24]
[1744301644665,88.15226568,109.76,109.75,0.0001]
[1744301644964,18.933972,109.75,109.74,0.0001]
[1744301645143,18.933972,109.74,109.71,0.063]
[1744301645462,53.54311884,109.74,109.71,0.063]
[1744301646164,52.28914684,109.75,109.71,0.063]
[1744301646165,17.68,109.75,109.71,0.063]
[1744301646352,34.60914684,109.75,109.71,34.67214684]
[1744301646554,9.1107,109.76,109.73,34.67214684]
[1744301646752,43.71934684,109.77,109.73,0.063]
[1744301646947,43.71934684,109.77,109.73,34.67214684]
[1744301647150,9.1102,109.77,109.73,34.67214684]
[1744301647358,43.71864684,109.78,109.73,34.67214684]
[1744301647561,43.71864684,109.78,109.74,34.60914684]
[1744301648244,43.71864684,109.78,109.73,34.67214684]
[1744301648441,43.71864684,109.78,109.74,34.60914684]
[1744301649345,9.1095,109.78,109.74,43.72154684]
[1744301649860,43.71864684,109.78,109.74,43.72154684]
[1744301650173,9.1095,109.78,109.74,43.72154684]
[1744301650377,43.71864684,109.78,109.74,43.72154684]
[1744301650560,43.71864684,109.78,109.73,43.78504684]
[1744301650876,9.1095,109.78,109.74,34.60914684]
[1744301651050,9.1086,109.79,109.74,34.60914684]
[1744301651250,34.60914684,109.78,109.74,34.60914684]
[1744301652043,34.60914684,109.78,109.73,43.78504684]
[1744301652645,34.60914684,109.78,109.74,53.2587957]
[1744301652876,9.1086,109.79,109.73,0.063]
[1744301652877,43.71964684,109.77,109.73,0.063]
[1744301653171,43.71964684,109.77,109.73,34.67214684]
[1744301653548,9.1105,109.77,109.73,34.67214684]
[1744301653745,43.71964684,109.77,109.73,0.063]
[1744301653957,43.71964684,109.77,109.73,43.78534684]
[1744301654169,9.1105,109.77,109.73,43.78534684]
[1744301654693,43.71964684,109.77,109.73,0.063]
[1744301654848,34.60914684,109.75,109.73,0.063]
[1744301655345,34.60914684,109.74,109.73,0.063]
[1744301655545,6.5623,109.75,109.73,0.063]
[1744301655757,34.60914684,109.74,109.73,0.063]
[1744301655947,43.72154684,109.74,109.73,0.063]
[1744301657976,62.65551884,109.74,109.73,0.0001]
[1744301658780,9.1124,109.74,109.73,0.0001]
[1744301659076,43.72154684,109.74,109.73,0.0001]
[1744301663587,9.1124,109.74,109.73,0.0001]
[1744301663883,34.60914684,109.74,109.73,0.0001]
[1744301664978,34.60914684,109.75,109.73,0.0001]
[1744301665569,43.72004684,109.76,109.73,0.0001]
[1744301665876,34.60914684,109.78,109.74,34.60914684]
[1744301666079,34.60914684,109.77,109.73,0.0001]
[1744301666263,34.60914684,109.77,109.73,34.60924684]
[1744301666673,34.60914684,109.78,109.73,34.60924684]
[1744301667058,34.60914684,109.78,109.73,9.113]
[1744301667273,34.60914684,109.78,109.73,43.72214684]
[1744301667790,34.60914684,109.77,109.73,43.72214684]
[1744301668556,43.71854684,109.78,109.73,9.113]
[1744301668867,34.60914684,109.77,109.73,62.3719957]
[1744301669078,43.71854684,109.78,109.73,62.3719957]
[1744301669270,34.60914684,109.78,109.73,86.7650957]
[1744301669479,34.60914684,109.82,109.77,34.60914684]
[1744301669799,9.1058,109.82,109.79,34.60914684]
[1744301669962,9.1053,109.83,109.78,6.4718]
[1744301670273,9.1053,109.83,109.75,34.60914684]
[1744301670274,34.60914684,109.79,109.74,34.60914684]
[1744301670480,34.60914684,109.77,109.73,63.9819957]
[1744301670686,34.60914684,109.78,109.74,34.60914684]
[1744301670883,34.60914684,109.78,109.73,54.8688957]
[1744301671075,43.71944684,109.77,109.73,63.9820957]
[1744301671276,43.71944684,109.77,109.73,54.8688957]
[1744301671576,43.71944684,109.77,109.73,63.9818957]
[1744301671883,9.1103,109.77,109.73,63.9818957]
[1744301672261,9.1094,109.78,109.74,34.60914684]
[1744301672462,66.49134684,109.78,109.73,36.21924684]
[1744301672781,34.60914684,109.76,109.73,0.0001]
[1744301673168,43.72014684,109.76,109.73,0.0001]
[1744301673873,34.60914684,109.75,109.73,0.0001]
[1744301674186,34.60914684,109.74,109.73,0.0001]
[1744301675168,43.72154684,109.74,109.73,0.0001]
[1744301675703,9.1124,109.74,109.73,0.0001]
[1744301675993,43.72154684,109.74,109.73,0.0001]
[1744301677786,9.1124,109.74,109.73,0.0001]
[1744301677991,9.1099,109.77,109.73,0.0001]
[1744301678185,34.60914684,109.76,109.73,0.0001]
[1744301678573,9.1099,109.77,109.73,0.0001]
[1744301678767,34.60914684,109.75,109.73,0.0001]
[1744301678992,9.1118,109.75,109.73,0.0001]
[1744301679183,43.72024684,109.76,109.73,0.0001]
[1744301680780,34.60914684,109.75,109.73,0.0001]
[1744301680987,34.60914684,109.74,109.73,0.0001]
[1744301681178,43.72154684,109.74,109.73,0.0001]
[1744301681979,50.16640841,109.74,109.73,0.0001]
[1744301682177,0.14216157,109.73,109.72,0.0001]
[1744301682408,26.0,109.7,109.68,0.063]
[1744301682583,34.60914684,109.69,109.68,0.063]
[1744301682784,26.0,109.7,109.68,0.063]
[1744301683103,83.7584,109.74,109.68,34.67214684]
[1744301683104,34.60914684,109.72,109.68,34.67214684]
[1744301683271,43.72404684,109.72,109.68,0.063]
[1744301683474,9.1149,109.72,109.69,34.60914684]
[1744301684083,9.1132,109.73,109.69,34.60914684]
[1744301684301,43.72234684,109.73,109.68,18.71264886]
[1744301684601,34.60914684,109.72,109.68,0.063]
[1744301685110,43.72234684,109.73,109.69,34.60914684]
[1744301685283,43.72234684,109.73,109.68,34.67214684]
[1744301685483,34.60914684,109.72,109.68,34.67214684]
[1744301685804,34.60914684,109.72,109.68,43.78944684]
[1744301686208,34.60914684,109.71,109.68,0.063]
[1744301687605,43.72484684,109.71,109.68,0.063]
[1744301687810,9.1157,109.71,109.68,0.063]
[1744301688104,43.72484684,109.71,109.68,0.063]
[1744301688708,26.0,109.73,109.69,34.60914684]
[1744301688877,43.72074684,109.75,109.71,34.60914684]
[1744301689083,9.1116,109.75,109.71,34.60914684]
[1744301689283,9.1091,109.78,109.73,34.60914684]
[1744301689481,34.60914684,109.77,109.72,34.60914684]
[1744301689981,9.1091,109.78,109.72,34.60914684]
[1744301690186,9.1091,109.78,109.74,34.60914684]
[1744301690386,43.71824684,109.78,109.74,34.60914684]
[1744301691016,9.1091,109.78,109.74,43.72154684]
[1744301691207,43.71824684,109.78,109.74,34.60914684]
[1744301691409,34.60914684,109.77,109.71,27.76384886]
[1744301691711,34.60914684,109.77,109.72,34.60914684]
[1744301692286,31.8819,109.78,109.72,34.60914684]
[1744301692501,34.60914684,109.77,109.72,43.72284684]
[1744301692896,34.60914684,109.76,109.71,62.3731957]
[1744301693210,34.60914684,109.76,109.71,34.60914684]
[1744301693389,34.60914684,109.75,109.71,34.60914684]
[1744301693586,34.60914684,109.75,109.71,43.72384684]
[1744301693901,34.60914684,109.76,109.71,43.72384684]
[1744301694081,22.7728,109.78,109.72,34.60914684]
[1744301694282,34.60914684,109.78,109.73,34.60914684]
[1744301694908,34.60914684,109.78,109.73,43.72224684]
[1744301695086,34.60914684,109.77,109.73,34.60914684]
[1744301695494,34.60914684,109.77,109.72,9.1138]
[1744301695684,34.60914684,109.77,109.72,43.72294684]
[1744301695906,31.9419,109.79,109.72,43.72294684]
[1744301695907,34.60914684,109.78,109.73,34.60914684]
[1744301696207,34.60914684,109.77,109.73,34.60914684]
[1744301696408,34.60914684,109.77,109.72,9.1138]
[1744301696713,22.8337,109.79,109.73,34.60914684]
[1744301697005,9.1091,109.78,109.74,34.60914684]
[1744301697213,43.78084684,109.79,109.75,34.60914684]
[1744301697512,9.1717,109.79,109.75,34.60914684]
[1744301697713,43.78084684,109.79,109.75,34.60914684]
[1744301698007,9.1717,109.79,109.75,34.60914684]
[1744301698203,43.78084684,109.79,109.75,34.60914684]
[1744301700223,66.55154684,109.79,109.74,34.60914684]
[1744301700512,34.60914684,109.75,109.69,15.1966]
[1744301700686,34.60914684,109.72,109.68,23.3500177]
[1744301700881,26.0,109.74,109.7,34.60914684]
[1744301701108,34.60914684,109.74,109.7,34.60914684]
[1744301701312,34.60914684,109.76,109.72,34.60914684]
[1744301702333,9.1116,109.75,109.71,34.60914684]
[1744301702512,34.60914684,109.74,109.69,43.72574684]
[1744301702690,34.60914684,109.72,109.68,62.4388957]
[1744301703015,31.8906,109.75,109.69,34.60914684]
[1744301703192,34.60914684,109.72,109.68,34.67214684]
[1744301703394,34.60914684,109.72,109.68,0.063]
[1744301703816,34.60914684,109.7,109.68,0.063]
[1744301703990,26.0,109.72,109.68,0.063]
[1744301704205,84.11974684,109.75,109.68,34.67214684]
[1744301704405,34.60914684,109.72,109.68,34.67214684]
[1744301704916,26.7316,109.75,109.69,53.2587957]
[1744301705097,34.60914684,109.74,109.7,34.60914684]
[1744301705497,34.60914684,109.73,109.69,34.60914684]